[Event "*** MasterClass Titled Tuesday Blitz"]
[Site "Chess.com"]
[Date "2017.11.07"]
[Round "1"]
[White "LyonBeast"]
[Black "MartinZumsande"]
[Result "1/2-1/2"]
[WhiteElo "2778"]
[BlackElo "2435"]
[TimeControl "180+2"]
[EndTime "14:13:04 PST"]
[Termination "Game drawn by repetition"]

1. Nc3 {[%clk 0:03:01.9]} 1... d5 {[%clk 0:03:00.3]} 2. e4 {[%clk 0:02:57.5]}
2... e6 {[%clk 0:03:01.2]} 3. d4 {[%clk 0:02:55.2]} 3... Nf6 {[%clk 0:03:02.1]}
4. e5 {[%clk 0:02:54]} 4... Nfd7 {[%clk 0:03:02.7]} 5. f4 {[%clk 0:02:54]} 5...
c5 {[%clk 0:03:04.2]} 6. Nf3 {[%clk 0:02:53.2]} 6... Nc6 {[%clk 0:03:05.7]} 7.
Be3 {[%clk 0:02:52.1]} 7... Be7 {[%clk 0:03:07.2]} 8. Qd2 {[%clk 0:02:51.4]}
8... O-O {[%clk 0:03:08.2]} 9. O-O-O {[%clk 0:02:48.9]} 9... c4 {[%clk
0:03:06.3]} 10. Qe1 {[%clk 0:02:36.9]} 10... b5 {[%clk 0:02:58.2]} 11. Ne2
{[%clk 0:02:37.7]} 11... b4 {[%clk 0:02:53.3]} 12. Kd2 {[%clk 0:02:30.6]} 12...
Qa5 {[%clk 0:02:48.5]} 13. Ra1 {[%clk 0:02:31.7]} 13... c3+ {[%clk 0:02:41.5]}
14. bxc3 {[%clk 0:02:29.6]} 14... Nb6 {[%clk 0:02:42.9]} 15. Nc1 {[%clk
0:02:29]} 15... Ba6 {[%clk 0:02:36.1]} 16. Nb3 {[%clk 0:02:22.4]} 16... bxc3+
{[%clk 0:02:34.1]} 17. Kd1 {[%clk 0:02:22.6]} 17... Qa3 {[%clk 0:02:22.8]} 18.
Bxa6 {[%clk 0:02:23.5]} 18... Qxa6 {[%clk 0:02:22.8]} 19. Qe2 {[%clk 0:02:25]}
19... Nc4 {[%clk 0:02:16.5]} 20. Ke1 {[%clk 0:02:25.1]} 20... Nb4 {[%clk
0:02:12.6]} 21. Bc1 {[%clk 0:02:11.6]} 21... f6 {[%clk 0:01:56.8]} 22. a3 {[%clk
0:02:05.2]} 22... Nc6 {[%clk 0:01:51.2]} 23. Kf2 {[%clk 0:01:58.4]} 23... fxe5
{[%clk 0:01:50.4]} 24. fxe5 {[%clk 0:02:00]} 24... Rf5 {[%clk 0:01:41.7]} 25.
Rd1 {[%clk 0:01:55.3]} 25... Raf8 {[%clk 0:01:42.2]} 26. Kg1 {[%clk 0:01:55.8]}
26... Qc8 {[%clk 0:01:36.3]} 27. Rd3 {[%clk 0:01:53.8]} 27... Qe8 {[%clk
0:01:32.6]} 28. Be3 {[%clk 0:01:52.4]} 28... Qg6 {[%clk 0:01:27.2]} 29. Bf2
{[%clk 0:01:51.4]} 29... h5 {[%clk 0:01:09.8]} 30. Rxc3 {[%clk 0:01:47.5]} 30...
Qg4 {[%clk 0:01:02.2]} 31. h3 {[%clk 0:01:44.1]} 31... Qg6 {[%clk 0:00:53.3]}
32. Rf1 {[%clk 0:01:35.9]} 32... Qf7 {[%clk 0:00:42.7]} 33. Nbd2 {[%clk
0:01:30.9]} 33... N6a5 {[%clk 0:00:42.2]} 34. Nxc4 {[%clk 0:01:25.2]} 34... Nxc4
{[%clk 0:00:44.1]} 35. a4 {[%clk 0:01:23.1]} 35... a5 {[%clk 0:00:44.4]} 36. Rb3
{[%clk 0:01:23.7]} 36... Bb4 {[%clk 0:00:43.6]} 37. c3 {[%clk 0:01:24.8]} 37...
Be7 {[%clk 0:00:41.4]} 38. Rb7 {[%clk 0:01:25]} 38... Qg6 {[%clk 0:00:40.7]} 39.
Kh1 {[%clk 0:01:01.9]} 39... Bg5 {[%clk 0:00:30.6]} 40. Rfb1 {[%clk 0:01:02.4]}
40... Rxf3 {[%clk 0:00:20.7]} 41. gxf3 {[%clk 0:01:02.5]} 41... Qf5 {[%clk
0:00:22.3]} 42. Bg1 {[%clk 0:00:51.3]} 42... Nd2 {[%clk 0:00:22.3]} 43. R1b2
{[%clk 0:00:48.9]} 43... Nxf3 {[%clk 0:00:23.3]} 44. Qg2 {[%clk 0:00:49.3]}
44... Bh6 {[%clk 0:00:20.3]} 45. Rb8 {[%clk 0:00:42.9]} 45... Rxb8 {[%clk
0:00:17.4]} 46. Rxb8+ {[%clk 0:00:44.8]} 46... Kh7 {[%clk 0:00:19]} 47. Rb2
{[%clk 0:00:41]} 47... Ne1 {[%clk 0:00:20]} 48. Qg3 {[%clk 0:00:40.6]} 48...
Qe4+ {[%clk 0:00:20.5]} 49. Rg2 {[%clk 0:00:41.5]} 49... Nxg2 {[%clk 0:00:19.7]}
50. Qxg2 {[%clk 0:00:43.4]} 50... Qd3 {[%clk 0:00:20.7]} 51. Bf2 {[%clk
0:00:41.5]} 51... Qxc3 {[%clk 0:00:21.5]} 52. Qf1 {[%clk 0:00:43]} 52... Qc2
{[%clk 0:00:21.2]} 53. Kg1 {[%clk 0:00:43.3]} 53... Qf5 {[%clk 0:00:22.1]} 54.
Kg2 {[%clk 0:00:40.7]} 54... g5 {[%clk 0:00:23.4]} 55. Qb5 {[%clk 0:00:40.4]}
55... g4 {[%clk 0:00:22.7]} 56. hxg4 {[%clk 0:00:41.6]} 56... hxg4 {[%clk
0:00:24.6]} 57. Kg1 {[%clk 0:00:39]} 57... Qf3 {[%clk 0:00:24.4]} 58. Qd7+
{[%clk 0:00:39.8]} 58... Bg7 {[%clk 0:00:25.8]} 59. Qe7 {[%clk 0:00:39]} 59...
Qd1+ {[%clk 0:00:21.8]} 60. Kh2 {[%clk 0:00:39.6]} 60... Qe2 {[%clk 0:00:23]}
61. Kg2 {[%clk 0:00:37.3]} 61... Qf3+ {[%clk 0:00:24.1]} 62. Kg1 {[%clk
0:00:38.7]} 62... Qd1+ {[%clk 0:00:25.7]} 63. Kh2 {[%clk 0:00:40.1]} 63... Qe2
{[%clk 0:00:27.3]} 64. Kg1 {[%clk 0:00:36.5]} 64... Qd1+ {[%clk 0:00:26.6]}
1/2-1/2

[Event "*** MasterClass Titled Tuesday Blitz"]
[Site "Chess.com"]
[Date "2017.11.07"]
[Round "1"]
[White "Alexander_Moskalenko"]
[Black "hermionegrangermagic"]
[Result "1-0"]
[WhiteElo "2663"]
[BlackElo "2380"]
[TimeControl "180+2"]
[EndTime "14:13:23 PST"]
[Termination "Alexander_Moskalenko won by checkmate"]

1. d4 {[%clk 0:02:59.6]} 1... d5 {[%clk 0:03:00.5]} 2. Bg5 {[%clk 0:03:00.6]}
2... h6 {[%clk 0:02:56.3]} 3. Bh4 {[%clk 0:03:01.5]} 3... Nf6 {[%clk 0:02:55.4]}
4. Bxf6 {[%clk 0:03:02.2]} 4... exf6 {[%clk 0:02:56.3]} 5. e3 {[%clk 0:03:04.1]}
5... c6 {[%clk 0:02:57.2]} 6. Nd2 {[%clk 0:03:04]} 6... Bd6 {[%clk 0:02:56]} 7.
g3 {[%clk 0:03:03.8]} 7... O-O {[%clk 0:02:56.3]} 8. Bg2 {[%clk 0:03:05.3]} 8...
Bf5 {[%clk 0:02:51]} 9. Ne2 {[%clk 0:03:05.2]} 9... Re8 {[%clk 0:02:47.9]} 10.
O-O {[%clk 0:03:01.7]} 10... Nd7 {[%clk 0:02:34.1]} 11. c4 {[%clk 0:03:00.8]}
11... dxc4 {[%clk 0:02:33]} 12. Nxc4 {[%clk 0:03:02.7]} 12... Bc7 {[%clk
0:02:30.9]} 13. Nc3 {[%clk 0:03:02.3]} 13... Nb6 {[%clk 0:02:22]} 14. Na5 {[%clk
0:02:58.7]} 14... Rb8 {[%clk 0:02:11.9]} 15. Rc1 {[%clk 0:02:58.8]} 15... Nd5
{[%clk 0:02:00.7]} 16. Nb3 {[%clk 0:02:49]} 16... Nxc3 {[%clk 0:01:56.8]} 17.
bxc3 {[%clk 0:02:37.2]} 17... Be4 {[%clk 0:01:54.4]} 18. Bxe4 {[%clk 0:02:25.6]}
18... Rxe4 {[%clk 0:01:55]} 19. Nc5 {[%clk 0:02:27.5]} 19... Re7 {[%clk
0:01:55.8]} 20. Qf3 {[%clk 0:02:26.7]} 20... Bb6 {[%clk 0:01:52.6]} 21. Nb3
{[%clk 0:02:22.5]} 21... Qd7 {[%clk 0:01:50.7]} 22. c4 {[%clk 0:02:23.3]} 22...
Bc7 {[%clk 0:01:45.1]} 23. Nc5 {[%clk 0:02:19.7]} 23... Qh3 {[%clk 0:01:43.6]}
24. Rb1 {[%clk 0:02:17.3]} 24... Bd6 {[%clk 0:01:20.6]} 25. Nd3 {[%clk
0:02:12.1]} 25... Qe6 {[%clk 0:01:16.8]} 26. Rfc1 {[%clk 0:02:11.1]} 26... f5
{[%clk 0:01:07.7]} 27. Nf4 {[%clk 0:02:03.1]} 27... Qd7 {[%clk 0:01:01.6]} 28.
a4 {[%clk 0:01:56]} 28... c5 {[%clk 0:00:57.7]} 29. Nd5 {[%clk 0:01:17.9]} 29...
Ree8 {[%clk 0:00:54.8]} 30. Rd1 {[%clk 0:01:13]} 30... Qxa4 {[%clk 0:00:48.3]}
31. dxc5 {[%clk 0:01:10.3]} 31... Bxc5 {[%clk 0:00:44.6]} 32. Qxf5 {[%clk
0:01:11.8]} 32... Qxc4 {[%clk 0:00:31.2]} 33. Rbc1 {[%clk 0:01:12]} 33... Qa4
{[%clk 0:00:23.1]} 34. Nc7 {[%clk 0:01:12.2]} 34... Ba3 {[%clk 0:00:15.8]} 35.
Nxe8 {[%clk 0:00:55]} 35... Bxc1 {[%clk 0:00:16.2]} 36. Rxc1 {[%clk 0:00:56.9]}
36... Rxe8 {[%clk 0:00:15.8]} 37. Rc7 {[%clk 0:00:58.4]} 37... Qb3 {[%clk
0:00:15.8]} 38. Qd7 {[%clk 0:00:57.6]} 38... Rb8 {[%clk 0:00:14.2]} 39. Qd6
{[%clk 0:00:35.6]} 39... Qb1+ {[%clk 0:00:14.2]} 40. Kg2 {[%clk 0:00:35.2]}
40... Qe4+ {[%clk 0:00:14.4]} 41. Kh3 {[%clk 0:00:36.3]} 41... Qe6+ {[%clk
0:00:11.4]} 42. Qxe6 {[%clk 0:00:35.4]} 42... fxe6 {[%clk 0:00:13.3]} 43. Kg4
{[%clk 0:00:31.9]} 43... g6 {[%clk 0:00:10.5]} 44. Kf4 {[%clk 0:00:31.6]} 44...
b5 {[%clk 0:00:11]} 45. Rxa7 {[%clk 0:00:32]} 45... b4 {[%clk 0:00:11.3]} 46.
Ra1 {[%clk 0:00:28.7]} 46... Rb5 {[%clk 0:00:11.5]} 47. Rb1 {[%clk 0:00:29.2]}
47... Kf7 {[%clk 0:00:10.9]} 48. Ke4 {[%clk 0:00:30.6]} 48... Kf6 {[%clk
0:00:11.9]} 49. f4 {[%clk 0:00:31.7]} 49... b3 {[%clk 0:00:08.7]} 50. g4 {[%clk
0:00:32.7]} 50... b2 {[%clk 0:00:09.3]} 51. h4 {[%clk 0:00:30.6]} 51... h5
{[%clk 0:00:09.4]} 52. g5+ {[%clk 0:00:31.7]} 52... Ke7 {[%clk 0:00:10.5]} 53.
Kd4 {[%clk 0:00:31.8]} 53... Rb3 {[%clk 0:00:11.1]} 54. e4 {[%clk 0:00:32.5]}
54... Rb4+ {[%clk 0:00:10.1]} 55. Kd3 {[%clk 0:00:32.2]} 55... Kd6 {[%clk
0:00:11.2]} 56. f5 {[%clk 0:00:21.1]} 56... exf5 {[%clk 0:00:12]} 57. exf5
{[%clk 0:00:22.8]} 57... gxf5 {[%clk 0:00:13.2]} 58. Kc3 {[%clk 0:00:23.1]}
58... Rxh4 {[%clk 0:00:12.6]} 59. Rxb2 {[%clk 0:00:24.2]} 59... Rg4 {[%clk
0:00:13.3]} 60. g6 {[%clk 0:00:25.9]} 60... Rxg6 {[%clk 0:00:14.2]} 61. Rb6+
{[%clk 0:00:27.6]} 61... Ke5 {[%clk 0:00:15.2]} 62. Rxg6 {[%clk 0:00:29.5]}
62... h4 {[%clk 0:00:16.2]} 63. Rh6 {[%clk 0:00:31]} 63... Kf4 {[%clk
0:00:16.8]} 64. Rxh4+ {[%clk 0:00:31.8]} 64... Kg3 {[%clk 0:00:18.3]} 65. Rh8
{[%clk 0:00:33.4]} 65... f4 {[%clk 0:00:19.7]} 66. Kd2 {[%clk 0:00:34.8]} 66...
Kf2 {[%clk 0:00:20.3]} 67. Rg8 {[%clk 0:00:36.7]} 67... f3 {[%clk 0:00:21.6]}
68. Rf8 {[%clk 0:00:37.9]} 68... Kg2 {[%clk 0:00:22.8]} 69. Ke3 {[%clk
0:00:39.4]} 69... Kg3 {[%clk 0:00:23.5]} 70. Rxf3+ {[%clk 0:00:40.7]} 70... Kg2
{[%clk 0:00:24.6]} 71. Ke2 {[%clk 0:00:39.6]} 71... Kg1 {[%clk 0:00:25.9]} 72.
Rg3+ {[%clk 0:00:40.4]} 72... Kh2 {[%clk 0:00:25.5]} 73. Kf2 {[%clk 0:00:41.4]}
73... Kh1 {[%clk 0:00:27.4]} 74. Rh3# {[%clk 0:00:43]} 1-0

[Event "*** MasterClass Titled Tuesday Blitz"]
[Site "Chess.com"]
[Date "2017.11.07"]
[Round "1"]
[White "Noukii"]
[Black "LastHeroJr"]
[Result "1/2-1/2"]
[WhiteElo "2621"]
[BlackElo "2364"]
[TimeControl "180+2"]
[EndTime "14:13:30 PST"]
[Termination "Game drawn - insufficient material"]

1. d4 {[%clk 0:03:01.9]} 1... Nf6 {[%clk 0:03:00.7]} 2. c4 {[%clk 0:02:59.6]}
2... g6 {[%clk 0:03:01.8]} 3. Nc3 {[%clk 0:03:00]} 3... Bg7 {[%clk 0:03:03]} 4.
Nf3 {[%clk 0:03:00.1]} 4... O-O {[%clk 0:03:03.4]} 5. e4 {[%clk 0:03:00.2]} 5...
d6 {[%clk 0:03:04.6]} 6. Be2 {[%clk 0:03:01.8]} 6... e5 {[%clk 0:03:05.7]} 7.
O-O {[%clk 0:03:03.3]} 7... Nc6 {[%clk 0:03:06.4]} 8. d5 {[%clk 0:03:04.8]} 8...
Ne7 {[%clk 0:03:07.7]} 9. Nh4 {[%clk 0:03:06.4]} 9... Nd7 {[%clk 0:03:02.7]} 10.
g3 {[%clk 0:03:04.5]} 10... f5 {[%clk 0:02:59.7]} 11. exf5 {[%clk 0:03:05.1]}
11... gxf5 {[%clk 0:02:44.6]} 12. f4 {[%clk 0:03:02.4]} 12... Ng6 {[%clk
0:02:38.2]} 13. Ng2 {[%clk 0:03:01.5]} 13... a5 {[%clk 0:02:33.5]} 14. Be3
{[%clk 0:02:53.6]} 14... Qe7 {[%clk 0:02:33.2]} 15. Qd2 {[%clk 0:02:50.9]} 15...
Nf6 {[%clk 0:02:25]} 16. Rae1 {[%clk 0:02:47.1]} 16... Ne4 {[%clk 0:02:22.6]}
17. Nxe4 {[%clk 0:02:30.7]} 17... fxe4 {[%clk 0:02:24.5]} 18. f5 {[%clk
0:02:31]} 18... Rxf5 {[%clk 0:02:18.7]} 19. Qd1 {[%clk 0:02:29.5]} 19... Rxf1+
{[%clk 0:02:18.2]} 20. Rxf1 {[%clk 0:02:27.6]} 20... Bh3 {[%clk 0:02:19.7]} 21.
Bg4 {[%clk 0:02:26.9]} 21... Bxg4 {[%clk 0:02:10.3]} 22. Qxg4 {[%clk 0:02:28.8]}
22... Rf8 {[%clk 0:02:11.5]} 23. Qxe4 {[%clk 0:02:27.1]} 23... Rxf1+ {[%clk
0:02:11.7]} 24. Kxf1 {[%clk 0:02:29]} 24... Qf7+ {[%clk 0:02:06.3]} 25. Ke2
{[%clk 0:02:29.8]} 25... Ne7 {[%clk 0:02:07.5]} 26. g4 {[%clk 0:02:29.6]} 26...
c6 {[%clk 0:02:07.5]} 27. dxc6 {[%clk 0:02:29.6]} 27... bxc6 {[%clk 0:02:09.4]}
28. b3 {[%clk 0:02:17.9]} 28... d5 {[%clk 0:02:09.6]} 29. cxd5 {[%clk
0:02:10.6]} 29... cxd5 {[%clk 0:02:11.5]} 30. Qa4 {[%clk 0:02:11.7]} 30... d4
{[%clk 0:02:08.2]} 31. Bd2 {[%clk 0:02:07.9]} 31... e4 {[%clk 0:02:04.3]} 32.
Qc4 {[%clk 0:02:02.7]} 32... Qxc4+ {[%clk 0:01:51.1]} 33. bxc4 {[%clk
0:02:04.6]} 33... Nc6 {[%clk 0:01:49.4]} 34. Nf4 {[%clk 0:01:59.7]} 34... Kf7
{[%clk 0:01:50.2]} 35. Nd5 {[%clk 0:01:53.1]} 35... Bf8 {[%clk 0:01:40.8]} 36.
a4 {[%clk 0:01:46.5]} 36... Bc5 {[%clk 0:01:39.4]} 37. h4 {[%clk 0:01:40.5]}
37... Ke6 {[%clk 0:01:35.1]} 38. h5 {[%clk 0:01:40.2]} 38... d3+ {[%clk
0:01:30.7]} 39. Kd1 {[%clk 0:01:40.1]} 39... Ne5 {[%clk 0:01:30.3]} 40. Nf4+
{[%clk 0:01:16]} 40... Kf7 {[%clk 0:01:25.3]} 41. g5 {[%clk 0:01:12.5]} 41...
Nxc4 {[%clk 0:00:54.2]} 42. Bc3 {[%clk 0:01:11.7]} 42... Ne3+ {[%clk 0:00:35.1]}
43. Kd2 {[%clk 0:01:07.2]} 43... Nf5 {[%clk 0:00:35.9]} 44. g6+ {[%clk
0:00:59.2]} 44... hxg6 {[%clk 0:00:32]} 45. hxg6+ {[%clk 0:01:01.1]} 45... Kg8
{[%clk 0:00:30.7]} 46. Nd5 {[%clk 0:00:58.6]} 46... Bd4 {[%clk 0:00:21.4]} 47.
Bxd4 {[%clk 0:00:43.7]} 47... Nxd4 {[%clk 0:00:22.4]} 48. Nf6+ {[%clk
0:00:45.4]} 48... Kg7 {[%clk 0:00:23.5]} 49. Nxe4 {[%clk 0:00:47.3]} 49... Kxg6
{[%clk 0:00:15.7]} 50. Kxd3 {[%clk 0:00:49.2]} 50... Nc6 {[%clk 0:00:11.1]} 51.
Kc4 {[%clk 0:00:50.1]} 51... Kf5 {[%clk 0:00:12.4]} 52. Nc3 {[%clk 0:00:42.4]}
52... Ke6 {[%clk 0:00:12.7]} 53. Kc5 {[%clk 0:00:40.1]} 53... Kd7 {[%clk
0:00:13.7]} 54. Nd5 {[%clk 0:00:39.9]} 54... Ne5 {[%clk 0:00:13.5]} 55. Kb5
{[%clk 0:00:37.8]} 55... Kd6 {[%clk 0:00:14.5]} 56. Nb6 {[%clk 0:00:38.5]} 56...
Nc6 {[%clk 0:00:14.2]} 57. Nc4+ {[%clk 0:00:39.7]} 57... Kd5 {[%clk 0:00:15.6]}
58. Ne3+ {[%clk 0:00:40]} 58... Kd6 {[%clk 0:00:16.8]} 59. Nf5+ {[%clk
0:00:41.4]} 59... Kd5 {[%clk 0:00:18.1]} 60. Ne3+ {[%clk 0:00:40.9]} 60... Kd6
{[%clk 0:00:19.3]} 61. Nc2 {[%clk 0:00:41.6]} 61... Kd5 {[%clk 0:00:19.4]} 62.
Na3 {[%clk 0:00:42.9]} 62... Kd6 {[%clk 0:00:20.3]} 63. Kb6 {[%clk 0:00:44.5]}
63... Kd5 {[%clk 0:00:20.4]} 64. Nb5 {[%clk 0:00:45.7]} 64... Ne5 {[%clk
0:00:14.9]} 65. Kxa5 {[%clk 0:00:45.9]} 65... Kc5 {[%clk 0:00:15.9]} 66. Nc7
{[%clk 0:00:34.8]} 66... Nc6+ {[%clk 0:00:11.8]} 67. Ka6 {[%clk 0:00:35.3]}
67... Kb4 {[%clk 0:00:13]} 68. Kb6 {[%clk 0:00:36.7]} 68... Kxa4 {[%clk
0:00:12.6]} 69. Kxc6 {[%clk 0:00:38.6]} 1/2-1/2

[Event "*** MasterClass Titled Tuesday Blitz"]
[Site "Chess.com"]
[Date "2017.11.07"]
[Round "1"]
[White "timator"]
[Black "gmcorrales"]
[Result "1-0"]
[WhiteElo "2424"]
[BlackElo "2677"]
[TimeControl "180+2"]
[EndTime "14:13:48 PST"]
[Termination "timator won by resignation"]

1. Nf3 {[%clk 0:02:54.7]} 1... c5 {[%clk 0:03:00.4]} 2. g3 {[%clk 0:02:55.7]}
2... Nc6 {[%clk 0:02:59.4]} 3. Bg2 {[%clk 0:02:54.8]} 3... g6 {[%clk 0:02:59.3]}
4. d4 {[%clk 0:02:55]} 4... cxd4 {[%clk 0:02:59.3]} 5. Nxd4 {[%clk 0:02:56.9]}
5... Bg7 {[%clk 0:03:00.8]} 6. Nxc6 {[%clk 0:02:58.2]} 6... bxc6 {[%clk
0:03:01.8]} 7. O-O {[%clk 0:03:00.1]} 7... Nf6 {[%clk 0:03:02.2]} 8. c4 {[%clk
0:03:01.6]} 8... O-O {[%clk 0:03:01.7]} 9. Nc3 {[%clk 0:03:02.6]} 9... Ng4
{[%clk 0:02:41.7]} 10. h3 {[%clk 0:02:49.6]} 10... Ne5 {[%clk 0:02:37.4]} 11.
Qa4 {[%clk 0:02:50.3]} 11... f5 {[%clk 0:02:32.1]} 12. Bf4 {[%clk 0:02:51]}
12... h6 {[%clk 0:02:30.6]} 13. Rad1 {[%clk 0:02:51.1]} 13... Qb6 {[%clk
0:02:27.9]} 14. Qb3 {[%clk 0:02:46.4]} 14... Qxb3 {[%clk 0:02:24.6]} 15. axb3
{[%clk 0:02:47.4]} 15... Rb8 {[%clk 0:02:20.2]} 16. Na4 {[%clk 0:02:42.4]} 16...
Rxb3 {[%clk 0:02:13.8]} 17. Bxe5 {[%clk 0:02:43.4]} 17... Bxe5 {[%clk
0:02:13.4]} 18. Nc5 {[%clk 0:02:45]} 18... Rxb2 {[%clk 0:01:53.7]} 19. Nd3
{[%clk 0:02:44.9]} 19... Bf6 {[%clk 0:01:21.2]} 20. Nxb2 {[%clk 0:02:45.5]}
20... Bxb2 {[%clk 0:01:23.1]} 21. Rb1 {[%clk 0:02:46.8]} 21... Bd4 {[%clk
0:01:23.2]} 22. Rfd1 {[%clk 0:02:47.2]} 22... Bb6 {[%clk 0:01:23.6]} 23. e3
{[%clk 0:02:43.7]} 23... Kf7 {[%clk 0:01:23.8]} 24. Rbc1 {[%clk 0:02:42.5]}
24... c5 {[%clk 0:01:24.5]} 25. e4 {[%clk 0:02:35.3]} 25... e6 {[%clk
0:01:25.4]} 26. exf5 {[%clk 0:02:35.9]} 26... gxf5 {[%clk 0:01:26.1]} 27. g4
{[%clk 0:02:34.1]} 27... fxg4 {[%clk 0:01:24.7]} 28. hxg4 {[%clk 0:02:35.5]}
28... Ke7 {[%clk 0:01:24.4]} 29. Rd3 {[%clk 0:02:32.1]} 29... Bc7 {[%clk
0:01:22.6]} 30. Rh3 {[%clk 0:02:24.2]} 30... Bf4 {[%clk 0:01:22.3]} 31. Rd1
{[%clk 0:02:25]} 31... Rg8 {[%clk 0:01:17.3]} 32. Bf3 {[%clk 0:01:55.9]} 32...
Ba6 {[%clk 0:00:59.7]} 33. Be2 {[%clk 0:01:52.9]} 33... Bb7 {[%clk 0:00:54]} 34.
Ra3 {[%clk 0:01:42.1]} 34... a6 {[%clk 0:00:54.1]} 35. Kf1 {[%clk 0:00:57.1]}
35... Rf8 {[%clk 0:00:48.2]} 36. Bf3 {[%clk 0:00:54.8]} 36... Bc8 {[%clk
0:00:49.1]} 37. Rad3 {[%clk 0:00:52.8]} 37... a5 {[%clk 0:00:49.1]} 38. Bb7
{[%clk 0:00:52.8]} 38... d6 {[%clk 0:00:43.3]} 39. Bxc8 {[%clk 0:00:53]} 39...
Rxc8 {[%clk 0:00:45.2]} 40. Rf3 {[%clk 0:00:53.6]} 40... e5 {[%clk 0:00:45.1]}
41. Rfd3 {[%clk 0:00:54.2]} 41... Rc6 {[%clk 0:00:44.9]} 42. Rb3 {[%clk
0:00:54.9]} 42... Ra6 {[%clk 0:00:45.1]} 43. Ra1 {[%clk 0:00:55.3]} 43... Bd2
{[%clk 0:00:45]} 44. Rb7+ {[%clk 0:00:55.7]} 44... Kf6 {[%clk 0:00:45.5]} 45.
Ra4 {[%clk 0:00:55]} 45... Kg5 {[%clk 0:00:43.4]} 46. Ke2 {[%clk 0:00:56.4]}
46... Bb4 {[%clk 0:00:42.7]} 47. f3 {[%clk 0:00:57.5]} 47... e4 {[%clk
0:00:35.1]} 48. fxe4 {[%clk 0:00:47.4]} 48... Kxg4 {[%clk 0:00:36.1]} 49. Ke3
{[%clk 0:00:48.3]} 49... Bc3 {[%clk 0:00:30.5]} 50. Ra2 {[%clk 0:00:41.6]} 50...
Bd4+ {[%clk 0:00:30.8]} 51. Kd3 {[%clk 0:00:42.5]} 51... Be5 {[%clk 0:00:21]}
52. Rg2+ {[%clk 0:00:43]} 52... Kh5 {[%clk 0:00:19.8]} 53. Rb1 {[%clk
0:00:39.2]} 53... Bf6 {[%clk 0:00:20.6]} 54. Rh1+ {[%clk 0:00:39.4]} 54... Bh4
{[%clk 0:00:21.7]} 55. Rgh2 {[%clk 0:00:41.1]} 55... a4 {[%clk 0:00:21.9]} 56.
Rxh4+ {[%clk 0:00:42.6]} 56... Kg5 {[%clk 0:00:23.8]} 57. R4h2 {[%clk
0:00:43.9]} 57... a3 {[%clk 0:00:24]} 58. Rf1 {[%clk 0:00:44.8]} 58... h5 {[%clk
0:00:24.8]} 59. Rg2+ {[%clk 0:00:45.5]} 59... Kh6 {[%clk 0:00:26]} 60. Ra2
{[%clk 0:00:46.6]} 60... h4 {[%clk 0:00:26.4]} 61. Ke3 {[%clk 0:00:44.4]} 61...
Kg5 {[%clk 0:00:27.4]} 62. Kf3 {[%clk 0:00:44.6]} 62... Ra4 {[%clk 0:00:27.4]}
63. Rg1+ {[%clk 0:00:44.5]} 63... Kh5 {[%clk 0:00:28.2]} 64. Rga1 {[%clk
0:00:44]} 64... Rxc4 {[%clk 0:00:27.3]} 65. Rxa3 {[%clk 0:00:45.5]} 65... Kg5
{[%clk 0:00:28.6]} 66. Rd3 {[%clk 0:00:46.3]} 66... h3 {[%clk 0:00:28.8]} 67.
Kg3 {[%clk 0:00:40.6]} 67... Rxe4 {[%clk 0:00:29.4]} 68. Rxd6 {[%clk 0:00:41.5]}
68... Re3+ {[%clk 0:00:30.7]} 69. Kh2 {[%clk 0:00:43]} 69... c4 {[%clk 0:00:32]}
70. Rc1 {[%clk 0:00:44.2]} 70... c3 {[%clk 0:00:29.5]} 71. Rc6 {[%clk
0:00:45.6]} 71... Kg4 {[%clk 0:00:28.6]} 72. Rc5 {[%clk 0:00:44.1]} 72... Re2+
{[%clk 0:00:29.2]} 73. Kh1 {[%clk 0:00:45]} 73... Ra2 {[%clk 0:00:28.2]} 74.
R5xc3 {[%clk 0:00:45.6]} 74... Rb2 {[%clk 0:00:29.7]} 75. Rd1 {[%clk 0:00:46.5]}
75... Kf4 {[%clk 0:00:30.2]} 76. Rd4+ {[%clk 0:00:45.5]} 76... Ke5 {[%clk
0:00:30.9]} 77. Ra4 {[%clk 0:00:46.5]} 77... Kd5 {[%clk 0:00:32]} 78. Rxh3
{[%clk 0:00:47.1]} 78... Kc5 {[%clk 0:00:33.5]} 79. Rh5+ {[%clk 0:00:48.5]}
79... Kb6 {[%clk 0:00:34.7]} 80. Rg4 {[%clk 0:00:49.8]} 80... Kb7 {[%clk
0:00:34.9]} 81. Rg6 {[%clk 0:00:50.8]} 81... Ka8 {[%clk 0:00:35.5]} 82. Rh8+
{[%clk 0:00:51.3]} 82... Ka7 {[%clk 0:00:32.2]} 83. Rh7+ {[%clk 0:00:52.6]}
83... Rb7 {[%clk 0:00:33.3]} 84. Rxb7+ {[%clk 0:00:53.3]} 84... Kxb7 {[%clk
0:00:35.2]} 85. Kg2 {[%clk 0:00:55.1]} 1-0